Cogmind - Beta 17 *** ADVENTURER MODE // 2026.07.01 @ 22:21:45 Player: ginkogruen Result: Destroyed by D-53 Grenadier with Mini Grenade Launcher Performance ------------- Evolutions (1) 500 Regions Visited (3) 600 Robots Destroyed (43) 215 Value Destroyed (1175) 1175 Prototype IDs (0) 0 Alien Tech Used (0) 0 Bonus (2) 2 TOTAL SCORE: 2492 Bonus ------- High Alert Combat Kills 2 Cogmind --------- Core Integrity 0/400 Matter 300/300 Energy 100/100 System Corruption 0% Temperature Cool (0) Movement Core (350) Ox6 Location -9/Mines Parts ------- > --- POWER (1) -------- (None) > --- PROPULSION (4) --- (None) > --- UTILITY (2) ------ Large Storage Unit Visual Processing Unit > --- WEAPON (2) ------- (None) > --- INVENTORY (15) --- Ion Engine Ion Engine Light Ion Engine Huge Storage Unit Small Matter Pod (50) High-capacity Matter Pod (91) Structural Scanner Visual Processing Unit Terrain Scanner Terrain Scanner Terrain Scan Processor Hacking Suite Peak State ------------ > --- POWER ------------ Light Nuclear Core > --- PROPULSION ------- Aluminum Leg Aluminum Leg Aluminum Leg Aluminum Leg > --- UTILITY ---------- Large Storage Unit Visual Processing Unit > --- WEAPON ----------- Assault Rifle Grenade Launcher > --- INVENTORY -------- Ion Engine Ion Engine Aluminum Leg Aluminum Leg Aluminum Leg Aluminum Leg Huge Storage Unit Small Matter Pod High-capacity Matter Pod Structural Scanner Visual Processing Unit Terrain Scanner Terrain Scanner Beam Cannon Beam Cannon [Rating: 13] Favorites ----------- Power Light Nuclear Core Engine Ion Engine Power Core Light Nuclear Core Propulsion Aluminum Leg Leg Aluminum Leg Flight Unit VTOL Module Utility Large Storage Unit Device Sensor Array Storage Large Storage Unit Processor Visual Processing Unit Weapon Assault Rifle Energy Gun Small Laser Energy Cannon Beam Cannon Ballistic Gun Assault Rifle Launcher Grenade Launcher Build | -11 -10 -9 -9 ------- Run | Yrd Mat Mat Min Slots Evolved 2 | . . 2 . Power . | . . . . Propulsion 2 | . . 2 . Utility . | . . . . Weapon . | . . . . Parts Attached 29 | 6 14 8 1 Power 5 | 1 2 2 . Engine 3 | 1 . 2 . Core 2 | . 2 . . Reactor . | . . . . Propulsion 11 | 2 6 2 1 Treads . | . . . . Leg 10 | 2 6 2 . Wheel . | . . . . Hover . | . . . . Flight 1 | . . . 1 Utility 7 | 1 5 1 . Device 4 | . 4 . . Storage 2 | 1 1 . . Processor 1 | . . 1 . Hackware . | . . . . Protection . | . . . . Artifact . | . . . . Weapon 6 | 2 1 3 . Energy Gun 1 | 1 . . . Energy Cannon 1 | . . 1 . Ballistic Gun 2 | 1 1 . . Ballistic Cannon . | . . . . Launcher 2 | . . 2 . Special Weapon . | . . . . Impact Weapon . | . . . . Slashing Weapon . | . . . . Piercing Weapon . | . . . . Special Melee Weapon . | . . . . Unidentified Prototypes . | . . . . Parts Lost 19 | . 5 10 4 Power 3 | . 1 1 1 Propulsion 9 | . 1 6 2 Utility 1 | . 1 . . Weapon 6 | . 2 3 1 Highest Loss Streak 7 | . 2 7 4 To Critical Strikes . | . . . . Average Backups 10 | 1 10 13 12 Power 2 | . 2 2 3 Propulsion 3 | . 4 2 . Utility 4 | . 2 7 9 Weapon 1 | . 1 1 . Tool/Special . | . . . . Unused Backups 12 | . 3 1 8 Power 3 | . 1 . 2 Propulsion 1 | . 1 . . Utility 7 | . 1 . 6 Weapon 1 | . . 1 . Tool/Special . | . . . . Average Slot Usage (%) 92 | . 93 93 57 Engine 2 | . 1 4 11 Core 10 | . 12 6 . Leg 30 | . 27 42 8 Device 6 | . 9 . . Storage 13 | . 14 11 11 Processor 2 | . . 10 11 Energy Gun 6 | . 8 . . Energy Cannon 1 | . . 4 9 Ballistic Gun 14 | . 18 6 . Launcher 1 | . . 6 . Peak Build Rating 13 | 6 10 13 9 Average Rating 9 | 4 9 11 7 On Entrance 5 | . 6 9 7 Avg Prop Armor Cover (%) 4 | . . . 4 Naked Turns . | . . . . Heaviest Build 31 | 11 30 31 28 Greatest Support 40 | 20 20 40 10 Greatest Overweight (x) 9 | 1 4 2 9 Average Overweight (x) . | . . . 3 Largest Inventory Capacity 15 | 8 15 15 15 Average Capacity 13 | 5 12 15 15 Most Carried 15 | 3 15 15 12 Average Carried 10 | 1 10 13 12 Final Capacity 15 | 8 15 15 15 Final Carried 15 | 2 15 12 12 Class Distribution -------------------- 100% | Mutant Dominant Class ---------------- Mutant | -10/Materials Mutant | -9/Materials Mutant | -9/Mines Resources | -11 -10 -9 -9 ----------- Run | Yrd Mat Mat Min Matter Collected 1068 | 180 599 238 51 Remotely . | . . . . Salvage Created 1240 | . 654 586 . Parts 73 | . 32 41 . Haulers Intercepted . | . . . . Recyclers Shooed 3 | . . 3 . Parts Field Recycled . | . . . . Retrieved Matter . | . . . . Parts Self-Destructed . | . . . . Prevented . | . . . . Parts Restored . | . . . . Kills | -11 -10 -9 -9 ------- Run | Yrd Mat Mat Min Combat Hostiles Destroyed 32 | . 16 16 . Guns 18 | . 16 2 . Cannons 6 | . . 6 . AOE 8 | . . 8 . Classes Destroyed 8 | . 3 5 . Worker 1 | . . 1 . Builder 4 | . . 4 . Recycler 2 | . . 2 . Operator 1 | . . 1 . Watcher 3 | . 2 1 . Swarmer 5 | . 3 2 . Grunt 23 | . 13 10 . Sentry 4 | . . 4 . Best Kill Streak 13 | . 4 13 . Combat Bots Only 9 | . 4 9 . Max Kills in Single Turn 3 | . 2 3 . Gunslinging 1 | . 1 . . Exploded 1 | . . 1 . Melee . | . . . . Uniques/NPCs Destroyed . | . . . . Combat | -11 -10 -9 -9 -------- Run | Yrd Mat Mat Min Hostile Shots Fired 264 | . 113 132 19 Missed 66 | . 23 38 5 Hits 198 | . 90 94 14 Projectile 198 | . 90 94 14 AOE 10 | . . . 10 Critical Strikes 4 | . 2 2 . Damage Taken 2234 | . 803 1073 358 Core 568 | . 163 186 219 Absorbed by Shields . | . . . . Ignored by Resistances 661 | . 245 314 102 Regen/Repaired (Parts) 61 | . 61 . . Core Remaining (%) 67 | 100 34 . . Volleys Fired 81 | . 51 30 . Largest 2 | . 2 2 . Hottest 90 | . 60 90 . Shots Fired 138 | . 90 48 . Gun 101 | . 90 11 . Cannon 18 | . . 18 . Launcher 19 | . . 19 . Special . | . . . . Kinetic 79 | . 68 11 . Thermal 40 | . 22 18 . Explosive 19 | . . 19 . Electromagnetic . | . . . . Robot Hit Streak 22 | . 22 18 . Robot Miss Streak 1 | . 1 1 . Penetration Max . | . . . . Secondary Targets 2 | . 2 . . Max Gunslinging Chain 1 | . 1 . . Shots Hit Robots 114 | . 77 37 . Core Hits 79 | . 35 44 . Critical Kills . | . . . . Critical Parts Destroyed 1 | . 1 . . Critical Strikes 1 | . 1 . . Destroy 1 | . 1 . . Melee Attacks . | . . . . Impact . | . . . . Slashing . | . . . . Piercing . | . . . . Sneak Attacks . | . . . . Combat Hostiles . | . . . . Follow-up Attacks . | . . . . Damage Inflicted 2492 | . 939 1550 3 Guns 1051 | . 939 112 . Cannons 265 | . . 265 . Explosions 1173 | . . 1173 . Melee . | . . . . Ramming 3 | . . . 3 Kinetic 854 | . 742 112 . Thermal 589 | . 197 392 . Explosive 1046 | . . 1046 . Electromagnetic . | . . . . Impact . | . . . . Slashing . | . . . . Piercing . | . . . . Highest Corruption . | . . . . Average Corruption . | . . . . Corruption Purged . | . . . . Corruption Blocked . | . . . . Overload Shots . | . . . . Overflow Damage . | . . . . Projectiles . | . . . . Explosions . | . . . . Melee . | . . . . Knockbacks . | . . . . Impact . | . . . . Kinetic . | . . . . Secondary . | . . . . Self-Inflicted Damage 211 | . . 211 . Shots 9 | . . 9 . Rammed . | . . . . Targets Rammed 1 | . . . 1 Kicked 1 | . . . 1 Crushed . | . . . . Highest Temperature 314 | . 210 314 . Average Temperature 83 | . 59 110 . Received Heat Transfer 1008 | . 582 426 . Siege Activations . | . . . . Martial Activations . | . . . . Shielding Activations . | . . . . Robots Disrupted . | . . . . Combat Hostiles . | . . . . Robots Corrupted . | . . . . Combat Hostiles . | . . . . Parts Fried . | . . . . Impact Corruptions . | . . . . Robots Melted . | . . . . Combat Hostiles . | . . . . Parts Melted . | . . . . Heat Transferred 1105 | . 450 655 . Parts Sabotaged . | . . . . Parts Stolen . | . . . . Parts Stripped . | . . . . Power Chain Reactions . | . . . . Alert | -11 -10 -9 -9 ------- Run | Yrd Mat Mat Min Maximum Alert Level 2 | . . 2 . Low Security (%) 92 | 100 100 64 100 Level 1 7 | . . 33 . Level 2 . | . . 2 . Level 3 . | . . . . Level 4 . | . . . . Level 5 . | . . . . High Security . | . . . . Max Security . | . . . . Peak Influence 404 | . 90 404 116 Initial 116 | . . 14 116 Average 54 | . 19 166 101 Influence Increases 1012 | . 403 594 15 Destroy 0b10 Robot/C 640 | . 320 320 . Destroy 0b10 Robot/NC 55 | . 10 45 . Destroy Leader 146 | . 54 92 . Successful Hack 12 | . 2 10 . Disable Machine 36 | . . 36 . Destroy Structure 93 | . 2 91 . Lose Combat Pursuer 30 | . 15 . 15 Influence Decreases 951 | . 362 281 308 Entered New Map 265 | . . 27 238 Time Decay 521 | . 337 154 30 Lost Part 165 | . 25 100 40 Squads Dispatched 7 | . 2 5 . Investigation 4 | . 2 2 . Extermination . | . . . . Reinforcement 3 | . . 3 . Assault . | . . . . Garrison . | . . . . Intercept . | . . . . Searches Triggered . | . . . . Construction Impeded 1 | . . 1 . Haulers Reinforced . | . . . . Active Scanning Responses . | . . . . Cargo Convoy Interrupts . | . . . . Stealth | -11 -10 -9 -9 --------- Run | Yrd Mat Mat Min Distress Signals 4 | . 1 2 1 Communications Jammed . | . . . . Distress Signals . | . . . . Times Spotted 63 | . 24 27 12 Peak Tracking Total 8 | . 6 8 7 Tactical Retreats 2 | . 1 . 1 Traps | -11 -10 -9 -9 ------- Run | Yrd Mat Mat Min Traps Triggered 6 | . 5 1 . Indirectly . | . . . . Trap Hack Attempts . | . . . . Triggered . | . . . . Disarmed . | . . . . Reprogrammed . | . . . . Reused . | . . . . Traps Extracted . | . . . . Installed . | . . . . Triggered . | . . . . Machines | -11 -10 -9 -9 ---------- Run | Yrd Mat Mat Min Machines Disabled 4 | . . 4 . Max in Single Turn 2 | . . 2 . Machines Repaired . | . . . . Machines Dismantled . | . . . . Machines Sabotaged . | . . . . Overloaded Fab Kills . | . . . . Hacking | -11 -10 -9 -9 --------- Run | Yrd Mat Mat Min Machines Accessed 4 | . 3 1 . Terminals 1 | . 1 . . Fabricators . | . . . . Repair Stations 2 | . 1 1 . Recycling Units 1 | . 1 . . Scanalyzers . | . . . . Garrison Access . | . . . . Total Hacks 9 | . 5 4 . Successful 6 | . 4 2 . Failed 3 | . 1 2 . Catastrophic . | . . . . Database Lockouts . | . . . . Manual . | . . . . Terminals 1 | . 1 . . Fabricators . | . . . . Repair Stations 6 | . 2 4 . Recycling Units 2 | . 2 . . Scanalyzers . | . . . . Garrison Access . | . . . . Terminal Hacks . | . . . . Fabricator Hacks . | . . . . Repair Station Hacks 4 | . 2 2 . Scan Component 3 | . 1 2 . Repair 1 | . 1 . . Recycling Unit Hacks 2 | . 2 . . Report Inventory 1 | . 1 . . Retrieve Components 1 | . 1 . . Scanalyzer . | . . . . Garrison Access Hacks . | . . . . Unauthorized Hacks . | . . . . Terminals . | . . . . Fabricators . | . . . . Repair Stations . | . . . . Recycling Units . | . . . . Scanalyzers . | . . . . Garrison Access . | . . . . Data Cores Recovered 1 | . . 1 . Used . | . . . . Hacking Detections 1 | . . 1 . Full Trace Events 1 | . . 1 . Feedback Events . | . . . . Feedback Blocked . | . . . . Robot Schematics Acquired . | . . . . Robots Built . | . . . . Authchips . | . . . . Time . | . . . . Total Robot Build Rating . | . . . . Part Schematics Acquired . | . . . . Parts Built . | . . . . Authchips . | . . . . Time . | . . . . Total Part Build Rating . | . . . . Part Studies Acquired . | . . . . Parts Repaired 1 | . 1 . . Time 26 | . 26 . . Parts Recycled . | . . . . Recycled Matter . | . . . . Retrieved Matter . | . . . . Retrieved Components 1 | . 1 . . Parts Scanalyzed . | . . . . Part Schematics Acquired . | . . . . Parts Damaged . | . . . . Bothacking | -11 -10 -9 -9 ------------ Run | Yrd Mat Mat Min Used RIF Installer . | . . . . Robots Hacked . | . . . . Non-combat . | . . . . Combat . | . . . . Robot Hacks Applied . | . . . . Relay Couplers Released . | . . . . Fabnet Peak Effective % . | . . . . Robots Rewired . | . . . . Allies Hacked . | . . . . Hacks Repelled . | . . . . Allies | -11 -10 -9 -9 -------- Run | Yrd Mat Mat Min Total Allies . | . . . . Largest Group . | . . . . Highest-Rated Group . | . . . . Highest-Rated Ally . | . . . . Total Orders . | . . . . Ally Attacks . | . . . . Total Damage . | . . . . Kills . | . . . . Allies Corrupted . | . . . . Allies Melted 1 | . . . 1 Intel | -11 -10 -9 -9 ------- Run | Yrd Mat Mat Min Active Infowar (turns) 1354 | . 871 407 76 Optics 470 | . . 394 76 Sensors 551 | . 551 . . Terrain 182 | . 169 13 . Seismic 151 | . 151 . . Robot Analysis Total . | . . . . Derelict Logs Recovered . | . . . . Drone Launches . | . . . . Drone Recoveries . | . . . . Exploration | -11 -10 -9 -9 ------------- Run | Yrd Mat Mat Min Turns Passed 1827 | 43 1301 407 76 Spaces Moved 910 | 29 659 198 24 Core 11 | 6 1 . 4 Treads . | . . . . Legs 899 | 23 658 198 20 Wheels . | . . . . Hover . | . . . . Flight . | . . . . Fastest Speed 50 | 50 120 120 260 Average Speed 153 | 112 158 122 293 Slowest Speed 500 | 120 260 260 500 Overloaded Moves . | . . . . Propulsion Burnouts . | . . . . Robots Hopped . | . . . . Potential Cave-ins . | . . . . Cave-ins Triggered . | . . . . Exploration Rate (%) 34 | 4 91 24 18 Regions Visited 3 Branch Regions 1 Pre-discovered Areas . | . . . . Known Exits Taken . | . . . . Unknown Exits Taken 3 | 1 1 1 . Scrap Searched 1 | . . . 1 Spaces Dug . | . . . . Terrain Destroyed 122 | . . 122 . Melee . | . . . . Projectile . | . . . . AOE 122 | . . 122 . Terrain Rammed . | . . . . Walls Destroyed . | . . . . Machines Disabled . | . . . . Actions | -11 -10 -9 -9 --------- Run | Yrd Mat Mat Min Total 1200 | 37 820 314 29 Wait 134 | . 64 67 3 Move 907 | 28 658 197 24 Hop . | . . . . Pick Up 28 | 3 19 6 . Fast Attach 16 | 5 9 1 1 Attach 12 | 1 3 8 . Detach . | . . . . Swap 12 | . 9 3 . Drop 9 | . 7 2 . Fire 81 | . 51 30 . Melee . | . . . . Ram . | . . . . Kick 1 | . . . 1 Crush . | . . . . Escape Stasis . | . . . . Rewire . | . . . . Trap . | . . . . Miscellaneous . | . . . . Route ------- -11/Scrapyard -10/Materials (discovered 5 exits: *Mat x2 / [*Min x2] / [*Sub]) -9/Materials (discovered 2 exits: [*Min x2]) -9/Mines (discovered 1 exit: [*Mat]) History --------- Turn | Location | Event 10 | -11/Scrapyard | Discovered new exit (range 15) 44 | -11/Scrapyard | Entered Materials 122 | -10/Materials | Discovered new exit (range 4) 315 | -10/Materials | Build established: Mutant 454 | -10/Materials | Discovered new exit (range 10) 581 | -10/Materials | Repaired Aluminum Leg 791 | -10/Materials | Discovered new exit (range 10) 948 | -10/Materials | Discovered new exit (range 11) 997 | -10/Materials | Core integrity fell below 50% 1231 | -10/Materials | Discovered new exit (range 6) 1345 | -10/Materials | Entered another Materials area 1345 | -9/Materials | Evolved 2 slots: Propulsion x2 1588 | -9/Materials | Discovered new exit (range 11) 1644 | -9/Materials | Discovered new exit (range 17) 1660 | -9/Materials | Destroyed 9 combat bots 1660 | -9/Materials | Lost 7 parts (1p3n3w) 1752 | -9/Materials | Entered Mines 1753 | -9/Mines | Assembled infested the area 1758 | -9/Mines | Assisted by a Guerilla fighting off Assembled 1777 | -9/Mines | Lost 3 parts (3n) 1811 | -9/Mines | Core integrity fell below 50% 1823 | -9/Mines | Core integrity fell below 20% 1826 | -9/Mines | Discovered new exit (range 11) 1828 | -9/Mines | Destroyed by D-53 Grenadier with Mini Grenade Launcher Last Messages --------------- 01815_ as-26555 destroyed. 01815_ VTOL Module destroyed. 01815_ K-01 Serf collects debris. 01816_ Laser Drill disabled. 01817_ R-06 Scavenger destroyed. 01818_ K-01 Serf collects debris. 01820_ as-94768 destroyed. 01822_ Laser Drill disabled. 01823_ U-05 Engineer lays Concrete. 01824_ The unstable cave ceiling collapses. 01824_ as-76516 destroyed. 01824_ K-01 Serf collects debris. 01824_ U-05 Engineer lays Concrete. 01825_ The unstable cave ceiling collapses. 01825_ U-05 Engineer lays Concrete. 01826_ EXIT=FOUND 01826_ K-01 Serf destroyed. 01826_ U-05 Engineer destroyed. 01826_ Ion Engine destroyed. 01826_ K-01 Serf collects debris. Map ----- +----------------------------------------------------+ | | | | | | | | | | | | | | | | | | | | | | | ?????????????????????????????????????????????????? | | ?????????????????????????????????????????????????? | | ???????????????????????######????????????????????? | | ??????????????????????? #????????????????????? | | ???????????????????? ? #????????????????????? | | ???????????????????" ?"" #????????????????????? | | ???????????????? """ """ #????????????????????? | | ???????????????? """ """ #????????????????????? | | ???????????????# #????????#???????????? | | ???????????????# """ """ ###???? ##??????????? | | ???????????????# """ """ ##? #??????????? | | ???????????????# """ " # #??????????? | | ?????????????#?# = *k < #??????????? | | ?????????????# # """ !%! #??????????? | | ?????????##### # """ @ % #????????????????? | | ??????? """ ##????????????????? | | ???????????????# d ##?????????????????? | | ???????????????# " #??????????????????? | | ???????????##?# #??????????????????? | | ??????????## # ???????????????? | | ??????????# # % ###### #?????????????? | | ??????????# d #????????????????????? | | ??????????# ##????????????????????? | | ????###### # #?????????????????????? | | ???#%%! %! # ###?????????????????????? | | # "" =### # ### ### ???????????????????????? | | ??????????? #?### ???????????????????????? | | ???????????## #???? ???????????????????????? | | ?????????????#?????? ???????????????????????? | | ???????????????????? ???????????????????????? | | ???????????????????# ???????????????????????? | | ???????????????????##? ??????????????????????? | | ????????????????????? ??????????????????????? | | ????????????????????? ???????????????????????? | | ?????????????????????? ???????????????????????? | | ?????????????????????????????????????????????????? | | ?????????????????????????????????????????????????? | | ?????????????????????????????????????????????????? | | ?????????????????????????????????????????????????? | +----------------------------------------------------+ Best States ------------- Heat Dissipation 28 Energy Generation 14 Energy Capacity 250 Matter Stores 300 Matter Capacity 300 Sight Range 18 Robot Scan Range 14 Terrain Scan Range 14 Terrain Scan Density 10 Resistance: KI 20 Resistance: TH 20 Resistance: EX 20 Resistance: EM 20 Resistance: I 20 Resistance: S 20 Resistance: P 20 Evasion (%) 55 Offensive Hacking 10 Item Schematics ----------------- None Robot Schematics ------------------ None Fabricated ------------ Nothing Repaired ---------- Aluminum Leg | 32% | -10/Materials Studied --------- None Alien Tech Used ----------------- None Achievements -------------- None Challenges ------------ None Game ------ Seed SmartbombTiamatHumpback Manual? 0 Play Time 00:22:33 Cumulative 19.0 hours Start 2026.07.01 @ 21:58:58 End 2026.07.01 @ 22:21:45 Sessions 1 Manual Loads 0 Difficulty Adventurer Special Mode None Game No. 25 Rogue 8 Adventurer 17 Explorer 0 Win Type - Total 0 Types 0/0/0/0/0/0/0/0/0/0 Lore% 16 Gallery% 12 Achievement% 13 Wizard Run 0 Options --------- Layout 0 ASCII 0 Keyboard 1 Movement Vi Keybinds 0 Fullscreen 1 Font 24/Smallcaps Map View 76x50 Zoom Use 0% Tactical HUD 1 Map Filters NONE Filters NONE Steam 1 RUN: 26e22d2a-2867-4f01-9588-fb9aa07c8cbb